[Event "January 2 Late 2024"]
[Site "https://www.chess.com"]
[Date "2024.01.02"]
[Round "3"]
[White "Hua, Lefong"]
[Black "Tang, Andrew"]
[Result "0-1"]
[Board "35"]
[TimeControl "180+1"]
[WhiteFideId "2602253"]
[BlackFideId "2059630"]
[WhiteElo "2676"]
[BlackElo "2903"]
[WhiteTeam "CAN"]
[BlackTeam "USA"]
[WhiteClock "0:00:43"]
[BlackClock "0:01:08"]

1. d4 {[%clk 0:03:00]}  d5 {[%clk 0:02:58]} 2. c4 {[%clk 0:03:01]}  e6 {[%clk 0:02:59]} 3. Nc3 {[%clk 0:03:01]}  Be7 {[%clk 0:02:59]} 4. cxd5 {[%clk 0:03:02]}  exd5 {[%clk 0:03:00]} 5. Bf4 {[%clk 0:03:02]}  c6 {[%clk 0:03:00]} 6. e3 {[%clk 0:03:03]}  Bf5 {[%clk 0:03:01]} 7. Bd3 {[%clk 0:03:03]}  Bxd3 {[%clk 0:03:01]} 8. Qxd3 {[%clk 0:03:04]}  Nf6 {[%clk 0:03:01]} 9. h3 {[%clk 0:03:04]}  O-O {[%clk 0:02:57]} 10. Nf3 {[%clk 0:03:04]}  Nbd7 {[%clk 0:02:57]} 11. O-O {[%clk 0:03:04]}  Re8 {[%clk 0:02:58]} 12. Rac1 {[%clk 0:02:58]}  Bf8 {[%clk 0:02:51]} 13. Bh2 {[%clk 0:02:52]}  Ne4 {[%clk 0:02:49]} 14. Nd2 {[%clk 0:02:44]}  Ng5 {[%clk 0:02:44]} 15. Rfe1 {[%clk 0:02:36]}  Ne6 {[%clk 0:02:39]} 16. Nf3 {[%clk 0:02:33]}  Nf6 {[%clk 0:02:36]} 17. Ne5 {[%clk 0:02:30]}  Bd6 {[%clk 0:02:25]} 18. a3 {[%clk 0:02:25]}  a5 {[%clk 0:02:25]} 19. Nf3 {[%clk 0:02:21]}  Bxh2+ {[%clk 0:02:18]} 20. Kxh2 {[%clk 0:02:22]}  Qd6+ {[%clk 0:02:17]} 21. Kg1 {[%clk 0:02:21]}  Re7 {[%clk 0:02:17]} 22. Na4 {[%clk 0:02:16]}  Ne4 {[%clk 0:02:10]} 23. Nd2 {[%clk 0:02:13]}  f5 {[%clk 0:02:04]} 24. f3 {[%clk 0:02:07]}  Ng3 {[%clk 0:02:01]} 25. Nf1 {[%clk 0:02:03]}  Nxf1 {[%clk 0:01:57]} 26. Qxf1 {[%clk 0:02:01]}  f4 {[%clk 0:01:57]} 27. Qd3 {[%clk 0:01:53]}  fxe3 {[%clk 0:01:55]} 28. Qxe3 {[%clk 0:01:52]}  Qg3 {[%clk 0:01:48]} 29. Qf2 {[%clk 0:01:46]}  Qg6 {[%clk 0:01:43]} 30. Kh2 {[%clk 0:01:33]}  Rae8 {[%clk 0:01:33]} 31. Re5 {[%clk 0:01:15]}  Nf4 {[%clk 0:01:28]} 32. Rce1 {[%clk 0:00:59]}  Nd3 {[%clk 0:01:09]} 33. Rxe7 {[%clk 0:00:43]}  Rxe7 {[%clk 0:01:08]} 0-1

[Event "January 2 Late 2024"]
[Site "https://www.chess.com"]
[Date "2024.01.02"]
[Round "3"]
[White "Livaic, Leon"]
[Black "Espinoza Villanueva, Rodrigo"]
[Result "1-0"]
[Board "36"]
[TimeControl "180+1"]
[WhiteFideId "14531534"]
[BlackFideId "5140188"]
[WhiteElo "2895"]
[BlackElo "2645"]
[WhiteTeam "CRO"]
[BlackTeam "MEX"]
[WhiteClock "0:01:18"]
[BlackClock "0:00:54"]

1. d4 {[%clk 0:03:00]}  Nf6 {[%clk 0:02:59]} 2. c4 {[%clk 0:03:01]}  g6 {[%clk 0:02:59]} 3. Nc3 {[%clk 0:03:01]}  Bg7 {[%clk 0:03:00]} 4. e4 {[%clk 0:03:01]}  d6 {[%clk 0:03:01]} 5. h3 {[%clk 0:03:02]}  O-O {[%clk 0:03:01]} 6. Be3 {[%clk 0:03:03]}  a5 {[%clk 0:03:01]} 7. g4 {[%clk 0:02:58]}  Na6 {[%clk 0:02:59]} 8. Nge2 {[%clk 0:02:54]}  e5 {[%clk 0:02:59]} 9. d5 {[%clk 0:02:54]}  Nd7 {[%clk 0:02:58]} 10. h4 {[%clk 0:02:47]}  f5 {[%clk 0:02:58]} 11. gxf5 {[%clk 0:02:45]}  gxf5 {[%clk 0:02:59]} 12. exf5 {[%clk 0:02:46]}  Ndc5 {[%clk 0:02:58]} 13. Ng3 {[%clk 0:02:46]}  Bxf5 {[%clk 0:02:53]} 14. Nxf5 {[%clk 0:02:45]}  Rxf5 {[%clk 0:02:54]} 15. Qg4 {[%clk 0:02:44]}  Qd7 {[%clk 0:02:41]} 16. Rg1 {[%clk 0:02:32]}  Kh8 {[%clk 0:02:38]} 17. O-O-O {[%clk 0:02:29]}  Raf8 {[%clk 0:02:37]} 18. Bh3 {[%clk 0:02:15]}  Nb4 {[%clk 0:01:54]} 19. Bxc5 {[%clk 0:01:59]}  dxc5 {[%clk 0:01:55]} 20. Qe4 {[%clk 0:01:59]}  Bh6+ {[%clk 0:01:24]} 21. Kb1 {[%clk 0:01:59]}  a4 {[%clk 0:01:14]} 22. a3 {[%clk 0:01:52]}  Na6 {[%clk 0:01:12]} 23. d6 {[%clk 0:01:43]}  c6 {[%clk 0:01:11]} 24. Rg2 {[%clk 0:01:24]}  Qf7 {[%clk 0:00:55]} 25. Bxf5 {[%clk 0:01:18]}  Qxf5 {[%clk 0:00:54]} 26. Qxf5 {[%clk 0:01:18]} 1-0

[Event "January 2 Late 2024"]
[Site "https://www.chess.com"]
[Date "2024.01.02"]
[Round "3"]
[White "Kukhmazov, Arsen"]
[Black "Chor, Kevin"]
[Result "1-0"]
[Board "38"]
[TimeControl "180+1"]
[WhiteFideId "24108260"]
[BlackFideId "2090740"]
[WhiteElo "2869"]
[BlackElo "2628"]
[WhiteTeam "FID"]
[BlackTeam "USA"]
[WhiteClock "0:01:17"]
[BlackClock "0:00:32"]

1. d4 {[%clk 0:03:00]}  Nf6 {[%clk 0:02:59]} 2. c4 {[%clk 0:03:01]}  g6 {[%clk 0:02:59]} 3. Nf3 {[%clk 0:02:59]}  Bg7 {[%clk 0:02:59]} 4. g3 {[%clk 0:03:00]}  O-O {[%clk 0:02:57]} 5. Bg2 {[%clk 0:03:00]}  d5 {[%clk 0:02:58]} 6. cxd5 {[%clk 0:03:01]}  Nxd5 {[%clk 0:02:59]} 7. O-O {[%clk 0:03:02]}  Nb6 {[%clk 0:02:56]} 8. Nc3 {[%clk 0:03:01]}  c6 {[%clk 0:02:53]} 9. e3 {[%clk 0:02:38]}  N8d7 {[%clk 0:02:50]} 10. a4 {[%clk 0:02:34]}  a5 {[%clk 0:02:47]} 11. Qc2 {[%clk 0:02:33]}  e5 {[%clk 0:02:39]} 12. Rd1 {[%clk 0:02:33]}  Qe7 {[%clk 0:02:34]} 13. b3 {[%clk 0:02:33]}  Rd8 {[%clk 0:02:31]} 14. Ba3 {[%clk 0:02:32]}  Qe8 {[%clk 0:02:21]} 15. Ne4 {[%clk 0:02:28]}  Bf8 {[%clk 0:02:00]} 16. Bxf8 {[%clk 0:02:15]}  Qxf8 {[%clk 0:01:43]} 17. dxe5 {[%clk 0:02:15]}  Nd5 {[%clk 0:01:40]} 18. Qb2 {[%clk 0:01:56]}  Qg7 {[%clk 0:01:33]} 19. Rd2 {[%clk 0:01:50]}  Re8 {[%clk 0:01:27]} 20. Nd6 {[%clk 0:01:49]}  Re7 {[%clk 0:01:20]} 21. Rc1 {[%clk 0:01:16]}  Nxe5 {[%clk 0:00:32]} 22. Nxe5 {[%clk 0:01:17]} 1-0

[Event "January 2 Late 2024"]
[Site "https://www.chess.com"]
[Date "2024.01.02"]
[Round "3"]
[White "Sowa, Ryan"]
[Black "Sanal, Vahap"]
[Result "0-1"]
[Board "39"]
[TimeControl "180+1"]
[WhiteFideId "30901693"]
[BlackFideId "6300545"]
[WhiteElo "2619"]
[BlackElo "2868"]
[WhiteTeam "USA"]
[BlackTeam "TUR"]
[WhiteClock "0:00:08"]
[BlackClock "0:00:21"]

1. Nf3 {[%clk 0:03:00]}  d6 {[%clk 0:03:00]} 2. d4 {[%clk 0:03:00]}  c5 {[%clk 0:02:57]} 3. c4 {[%clk 0:02:43]}  cxd4 {[%clk 0:02:54]} 4. Nxd4 {[%clk 0:02:44]}  Nc6 {[%clk 0:02:54]} 5. Nc3 {[%clk 0:02:44]}  g6 {[%clk 0:02:54]} 6. e4 {[%clk 0:02:44]}  Bg7 {[%clk 0:02:55]} 7. Be3 {[%clk 0:02:44]}  Nf6 {[%clk 0:02:55]} 8. Be2 {[%clk 0:02:45]}  Nxd4 {[%clk 0:02:55]} 9. Bxd4 {[%clk 0:02:44]}  O-O {[%clk 0:02:55]} 10. O-O {[%clk 0:02:44]}  Bd7 {[%clk 0:02:56]} 11. Qd2 {[%clk 0:02:43]}  Bc6 {[%clk 0:02:57]} 12. f3 {[%clk 0:02:44]}  a5 {[%clk 0:02:57]} 13. b3 {[%clk 0:02:44]}  Nd7 {[%clk 0:02:56]} 14. Be3 {[%clk 0:02:45]}  Nc5 {[%clk 0:02:56]} 15. Rac1 {[%clk 0:02:45]}  Qb6 {[%clk 0:02:56]} 16. Rc2 {[%clk 0:02:45]}  a4 {[%clk 0:02:42]} 17. b4 {[%clk 0:02:44]}  Qxb4 {[%clk 0:02:37]} 18. Nd5 {[%clk 0:02:44]}  Qxd2 {[%clk 0:02:36]} 19. Nxe7+ {[%clk 0:02:44]}  Kh8 {[%clk 0:02:37]} 20. Rxd2 {[%clk 0:02:45]}  Rfd8 {[%clk 0:02:32]} 21. Rfd1 {[%clk 0:01:54]}  Ne6 {[%clk 0:02:32]} 22. Rxd6 {[%clk 0:01:43]}  Rxd6 {[%clk 0:02:32]} 23. Rxd6 {[%clk 0:01:44]}  Bf8 {[%clk 0:02:30]} 24. Rxc6 {[%clk 0:01:15]}  bxc6 {[%clk 0:02:30]} 25. Nxc6 {[%clk 0:01:16]}  Bc5 {[%clk 0:02:26]} 26. Bxc5 {[%clk 0:01:16]}  Nxc5 {[%clk 0:02:27]} 27. Kf2 {[%clk 0:01:15]}  a3 {[%clk 0:02:22]} 28. Ke3 {[%clk 0:01:13]}  Ra6 {[%clk 0:02:22]} 29. Nd4 {[%clk 0:01:11]}  Ra4 {[%clk 0:02:22]} 30. Nb5 {[%clk 0:01:03]}  Kg7 {[%clk 0:02:15]} 31. Kd4 {[%clk 0:01:03]}  Ne6+ {[%clk 0:02:15]} 32. Kc3 {[%clk 0:00:58]}  Ra8 {[%clk 0:02:15]} 33. Kb4 {[%clk 0:00:48]}  Kf6 {[%clk 0:02:06]} 34. Nxa3 {[%clk 0:00:43]}  Nd4 {[%clk 0:02:06]} 35. Bd1 {[%clk 0:00:35]}  Nc6+ {[%clk 0:02:06]} 36. Kb3 {[%clk 0:00:36]}  Nd4+ {[%clk 0:02:07]} 37. Kb4 {[%clk 0:00:36]}  Nc6+ {[%clk 0:02:08]} 38. Kb3 {[%clk 0:00:36]}  Ke5 {[%clk 0:01:59]} 39. Nb5 {[%clk 0:00:35]}  Nd4+ {[%clk 0:01:53]} 40. Kb2 {[%clk 0:00:35]}  Rd8 {[%clk 0:01:50]} 41. Bb3 {[%clk 0:00:27]}  f5 {[%clk 0:01:48]} 42. exf5 {[%clk 0:00:26]}  gxf5 {[%clk 0:01:49]} 43. Kc3 {[%clk 0:00:26]}  Ne2+ {[%clk 0:01:48]} 44. Kb4 {[%clk 0:00:25]}  Nf4 {[%clk 0:01:46]} 45. g3 {[%clk 0:00:24]}  Nd3+ {[%clk 0:01:46]} 46. Kc3 {[%clk 0:00:24]}  Nc5 {[%clk 0:01:47]} 47. f4+ {[%clk 0:00:24]}  Ke4 {[%clk 0:01:46]} 48. Bc2+ {[%clk 0:00:24]}  Ke3 {[%clk 0:01:47]} 49. Bxf5 {[%clk 0:00:25]}  Rd2 {[%clk 0:01:46]} 50. Bxh7 {[%clk 0:00:22]}  Rxa2 {[%clk 0:01:46]} 51. Bc2 {[%clk 0:00:22]}  Ra1 {[%clk 0:01:44]} 52. f5 {[%clk 0:00:21]}  Rh1 {[%clk 0:01:45]} 53. g4 {[%clk 0:00:21]}  Rxh2 {[%clk 0:01:44]} 54. g5 {[%clk 0:00:22]}  Kf4 {[%clk 0:01:39]} 55. g6 {[%clk 0:00:22]}  Ke5 {[%clk 0:01:39]} 56. Nc7 {[%clk 0:00:19]}  Rh3+ {[%clk 0:01:34]} 57. Kb4 {[%clk 0:00:18]}  Nb7 {[%clk 0:01:24]} 58. c5 {[%clk 0:00:18]}  Rg3 {[%clk 0:01:21]} 59. Ne8 {[%clk 0:00:17]}  Nd8 {[%clk 0:01:19]} 60. g7 {[%clk 0:00:16]}  Nc6+ {[%clk 0:01:19]} 61. Ka4 {[%clk 0:00:13]}  Rg4+ {[%clk 0:01:14]} 62. Ka3 {[%clk 0:00:12]}  Nd4 {[%clk 0:01:11]} 63. Bb1 {[%clk 0:00:12]}  Nb5+ {[%clk 0:00:49]} 64. Kb2 {[%clk 0:00:12]}  Rg2+ {[%clk 0:00:48]} 65. Ka1 {[%clk 0:00:12]}  Rg1 {[%clk 0:00:45]} 66. f6 {[%clk 0:00:11]}  Ke6 {[%clk 0:00:46]} 67. Kb2 {[%clk 0:00:11]}  Rg2+ {[%clk 0:00:45]} 68. Kc1 {[%clk 0:00:09]}  Rg1+ {[%clk 0:00:41]} 69. Kb2 {[%clk 0:00:09]}  Rg2+ {[%clk 0:00:41]} 70. Ka1 {[%clk 0:00:09]}  Nc3 {[%clk 0:00:21]} 71. Bd3 {[%clk 0:00:08]}  Ra2# {[%clk 0:00:21]} 0-1

[Event "January 2 Late 2024"]
[Site "https://www.chess.com"]
[Date "2024.01.02"]
[Round "3"]
[White "Szpar, Milosz"]
[Black "Garcia, Erick"]
[Result "1-0"]
[Board "40"]
[TimeControl "180+1"]
[WhiteFideId "1184989"]
[BlackFideId "2058880"]
[WhiteElo "2866"]
[BlackElo "2617"]
[WhiteTeam "POL"]
[BlackTeam "USA"]
[WhiteClock "0:00:10"]
[BlackClock "0:00:30"]

1. e4 {[%clk 0:03:00]}  e5 {[%clk 0:02:59]} 2. Nf3 {[%clk 0:03:00]}  Nc6 {[%clk 0:02:59]} 3. Nc3 {[%clk 0:02:59]}  Nf6 {[%clk 0:02:59]} 4. Bb5 {[%clk 0:03:00]}  Bb4 {[%clk 0:02:58]} 5. O-O {[%clk 0:02:59]}  Bxc3 {[%clk 0:02:56]} 6. bxc3 {[%clk 0:02:59]}  d6 {[%clk 0:02:57]} 7. d4 {[%clk 0:02:56]}  exd4 {[%clk 0:02:55]} 8. cxd4 {[%clk 0:02:55]}  O-O {[%clk 0:02:55]} 9. Bd3 {[%clk 0:02:52]}  h6 {[%clk 0:02:53]} 10. c3 {[%clk 0:02:52]}  Ne7 {[%clk 0:02:52]} 11. h3 {[%clk 0:02:51]}  b6 {[%clk 0:02:50]} 12. Re1 {[%clk 0:02:51]}  Bb7 {[%clk 0:02:49]} 13. Bf4 {[%clk 0:02:31]}  Ng6 {[%clk 0:02:47]} 14. Bh2 {[%clk 0:02:31]}  Re8 {[%clk 0:02:47]} 15. Qc2 {[%clk 0:02:31]}  Nf8 {[%clk 0:02:38]} 16. Re2 {[%clk 0:02:25]}  c5 {[%clk 0:02:34]} 17. Rae1 {[%clk 0:02:16]}  cxd4 {[%clk 0:02:34]} 18. cxd4 {[%clk 0:02:16]}  Rc8 {[%clk 0:02:33]} 19. Qb2 {[%clk 0:02:00]}  a6 {[%clk 0:02:31]} 20. a4 {[%clk 0:01:40]}  d5 {[%clk 0:02:09]} 21. e5 {[%clk 0:01:32]}  Ne4 {[%clk 0:02:08]} 22. Nd2 {[%clk 0:01:32]}  Nc3 {[%clk 0:01:56]} 23. Re3 {[%clk 0:01:33]}  Nxa4 {[%clk 0:01:56]} 24. Qa1 {[%clk 0:01:33]}  b5 {[%clk 0:01:56]} 25. f4 {[%clk 0:01:18]}  Qb6 {[%clk 0:01:52]} 26. Kh1 {[%clk 0:01:18]}  Rc3 {[%clk 0:01:48]} 27. Nf3 {[%clk 0:01:13]}  Rec8 {[%clk 0:01:43]} 28. f5 {[%clk 0:01:13]}  Bc6 {[%clk 0:01:00]} 29. e6 {[%clk 0:01:11]}  fxe6 {[%clk 0:01:00]} 30. fxe6 {[%clk 0:01:12]}  Re8 {[%clk 0:01:00]} 31. e7 {[%clk 0:01:10]}  Rxe7 {[%clk 0:00:54]} 32. Rxe7 {[%clk 0:01:07]}  Rxd3 {[%clk 0:00:54]} 33. Be5 {[%clk 0:00:39]}  Nd7 {[%clk 0:00:42]} 34. Rxg7+ {[%clk 0:00:33]}  Kf8 {[%clk 0:00:43]} 35. Rh7 {[%clk 0:00:29]}  Nc3 {[%clk 0:00:39]} 36. Rf1 {[%clk 0:00:21]}  Ke8 {[%clk 0:00:39]} 37. Qe1 {[%clk 0:00:15]}  Ne4 {[%clk 0:00:39]} 38. Rh8+ {[%clk 0:00:13]}  Ke7 {[%clk 0:00:38]} 39. Qh4+ {[%clk 0:00:13]}  Ndf6 {[%clk 0:00:36]} 40. Bxf6+ {[%clk 0:00:13]}  Nxf6 {[%clk 0:00:36]} 41. Ne5 {[%clk 0:00:13]}  Bb7 {[%clk 0:00:30]} 42. Rh7+ {[%clk 0:00:10]} 1-0

[Event "January 2 Late 2024"]
[Site "https://www.chess.com"]
[Date "2024.01.02"]
[Round "3"]
[White "Taboas Rodriguez, Daniel"]
[Black "Melkumyan, Hrant"]
[Result "0-1"]
[Board "43"]
[TimeControl "180+1"]
[WhiteFideId "2208466"]
[BlackFideId "13302485"]
[WhiteElo "2570"]
[BlackElo "2860"]
[WhiteTeam "ESP"]
[BlackTeam "ARM"]
[WhiteClock "0:00:00"]
[BlackClock "0:00:18"]

1. d4 {[%clk 0:03:00]}  d5 {[%clk 0:02:59]} 2. Nf3 {[%clk 0:02:59]}  Nf6 {[%clk 0:02:58]} 3. c4 {[%clk 0:02:59]}  e6 {[%clk 0:02:57]} 4. Nc3 {[%clk 0:02:59]}  Be7 {[%clk 0:02:57]} 5. Bg5 {[%clk 0:02:59]}  Nbd7 {[%clk 0:02:52]} 6. e3 {[%clk 0:02:59]}  h6 {[%clk 0:02:50]} 7. Bh4 {[%clk 0:02:59]}  O-O {[%clk 0:02:51]} 8. Rc1 {[%clk 0:02:58]}  a6 {[%clk 0:02:41]} 9. c5 {[%clk 0:02:58]}  Ne4 {[%clk 0:02:31]} 10. Bg3 {[%clk 0:02:47]}  Nxg3 {[%clk 0:02:27]} 11. hxg3 {[%clk 0:02:48]}  f5 {[%clk 0:02:28]} 12. b4 {[%clk 0:02:44]}  c6 {[%clk 0:02:26]} 13. Bd3 {[%clk 0:02:41]}  Qc7 {[%clk 0:02:17]} 14. Qc2 {[%clk 0:02:40]}  e5 {[%clk 0:01:55]} 15. Bxf5 {[%clk 0:02:37]}  e4 {[%clk 0:01:49]} 16. Be6+ {[%clk 0:02:35]}  Kh8 {[%clk 0:01:49]} 17. Nh4 {[%clk 0:02:36]}  Bxh4 {[%clk 0:01:28]} 18. Rxh4 {[%clk 0:02:32]}  Nxc5 {[%clk 0:01:25]} 19. dxc5 {[%clk 0:02:12]}  Bxe6 {[%clk 0:01:24]} 20. Ne2 {[%clk 0:02:13]}  Rf6 {[%clk 0:01:23]} 21. Nd4 {[%clk 0:02:12]}  Raf8 {[%clk 0:01:22]} 22. Rf4 {[%clk 0:02:12]}  Qe5 {[%clk 0:01:18]} 23. Qe2 {[%clk 0:02:05]}  Kh7 {[%clk 0:01:15]} 24. Kd2 {[%clk 0:02:00]}  Bd7 {[%clk 0:01:12]} 25. Rh1 {[%clk 0:01:59]}  g5 {[%clk 0:01:12]} 26. Qh5 {[%clk 0:01:49]}  Be8 {[%clk 0:01:05]} 27. Rxf6 {[%clk 0:01:28]}  Qxf6 {[%clk 0:01:05]} 28. Qe2 {[%clk 0:01:23]}  Qxf2 {[%clk 0:01:01]} 29. g4 {[%clk 0:01:13]}  Qxe2+ {[%clk 0:00:59]} 30. Kxe2 {[%clk 0:01:02]}  Bd7 {[%clk 0:01:00]} 31. a4 {[%clk 0:01:01]}  Bxg4+ {[%clk 0:00:59]} 32. Ke1 {[%clk 0:01:01]}  Kg6 {[%clk 0:00:57]} 33. Rf1 {[%clk 0:01:00]}  Ra8 {[%clk 0:00:43]} 34. Kf2 {[%clk 0:00:50]}  h5 {[%clk 0:00:41]} 35. Kg3 {[%clk 0:00:50]}  Bd7 {[%clk 0:00:42]} 36. Rf2 {[%clk 0:00:40]}  h4+ {[%clk 0:00:42]} 37. Kh2 {[%clk 0:00:40]}  g4 {[%clk 0:00:42]} 38. Rf1 {[%clk 0:00:33]}  Rh8 {[%clk 0:00:41]} 39. Rf4 {[%clk 0:00:30]}  a5 {[%clk 0:00:29]} 40. b5 {[%clk 0:00:27]}  cxb5 {[%clk 0:00:26]} 41. axb5 {[%clk 0:00:28]}  Rc8 {[%clk 0:00:24]} 42. c6 {[%clk 0:00:19]}  bxc6 {[%clk 0:00:25]} 43. bxc6 {[%clk 0:00:20]}  g3+ {[%clk 0:00:26]} 44. Kg1 {[%clk 0:00:19]}  Bxc6 {[%clk 0:00:26]} 45. Rxh4 {[%clk 0:00:17]}  Bd7 {[%clk 0:00:26]} 46. Kf1 {[%clk 0:00:16]}  a4 {[%clk 0:00:23]} 47. Ke2 {[%clk 0:00:14]}  Rf8 {[%clk 0:00:20]} 48. Ke1 {[%clk 0:00:09]}  a3 {[%clk 0:00:20]} 49. Rh1 {[%clk 0:00:10]}  Rf2 {[%clk 0:00:18]} 50. Rf1 {[%clk 0:00:08]}  Rxf1+ {[%clk 0:00:17]} 51. Kxf1 {[%clk 0:00:00]}  Ba4 {[%clk 0:00:18]} 0-1

[Event "January 2 Late 2024"]
[Site "https://www.chess.com"]
[Date "2024.01.02"]
[Round "3"]
[White "Kadric, Denis"]
[Black "Pinheiro, Iung Alicio de O."]
[Result "1-0"]
[Board "45"]
[TimeControl "180+1"]
[WhiteFideId "14403803"]
[BlackFideId "2104350"]
[WhiteElo "2828"]
[BlackElo "2539"]
[WhiteTeam "MNE"]
[BlackTeam "BRA"]
[WhiteClock "0:00:20"]
[BlackClock "0:00:02"]

1. e4 {[%clk 0:03:00]}  e5 {[%clk 0:02:57]} 2. Nf3 {[%clk 0:03:00]}  Nc6 {[%clk 0:02:58]} 3. Bc4 {[%clk 0:03:01]}  Nf6 {[%clk 0:02:56]} 4. d3 {[%clk 0:03:01]}  Be7 {[%clk 0:02:56]} 5. O-O {[%clk 0:03:01]}  d6 {[%clk 0:02:56]} 6. a4 {[%clk 0:03:01]}  Na5 {[%clk 0:02:53]} 7. Ba2 {[%clk 0:03:01]}  c5 {[%clk 0:02:54]} 8. c3 {[%clk 0:03:01]}  O-O {[%clk 0:02:54]} 9. b4 {[%clk 0:03:00]}  Nc6 {[%clk 0:02:44]} 10. Bd2 {[%clk 0:02:50]}  cxb4 {[%clk 0:02:37]} 11. cxb4 {[%clk 0:02:51]}  Bg4 {[%clk 0:02:35]} 12. h3 {[%clk 0:02:46]}  Be6 {[%clk 0:02:09]} 13. b5 {[%clk 0:02:29]}  Bxa2 {[%clk 0:02:08]} 14. Rxa2 {[%clk 0:02:30]}  Nb8 {[%clk 0:02:03]} 15. Nc3 {[%clk 0:02:25]}  Nbd7 {[%clk 0:02:04]} 16. Re1 {[%clk 0:02:23]}  Nc5 {[%clk 0:01:55]} 17. d4 {[%clk 0:02:13]}  exd4 {[%clk 0:01:47]} 18. Nxd4 {[%clk 0:02:14]}  Re8 {[%clk 0:01:47]} 19. Qf3 {[%clk 0:02:07]}  Ncd7 {[%clk 0:01:27]} 20. Nf5 {[%clk 0:01:59]}  Ne5 {[%clk 0:01:23]} 21. Qe2 {[%clk 0:01:52]}  Bf8 {[%clk 0:01:21]} 22. Bg5 {[%clk 0:01:51]}  h6 {[%clk 0:01:20]} 23. Bh4 {[%clk 0:01:40]}  Ng6 {[%clk 0:01:20]} 24. Bxf6 {[%clk 0:01:35]}  Qxf6 {[%clk 0:01:21]} 25. Nd5 {[%clk 0:01:36]}  Qd8 {[%clk 0:01:21]} 26. Rc2 {[%clk 0:01:33]}  Rc8 {[%clk 0:01:16]} 27. Rec1 {[%clk 0:01:26]}  Rxc2 {[%clk 0:01:14]} 28. Qxc2 {[%clk 0:01:27]}  Qd7 {[%clk 0:00:59]} 29. f3 {[%clk 0:01:16]}  Ne5 {[%clk 0:00:55]} 30. Qc7 {[%clk 0:01:14]}  Qe6 {[%clk 0:00:44]} 31. Qxb7 {[%clk 0:01:07]}  Qg6 {[%clk 0:00:40]} 32. Rc8 {[%clk 0:00:40]}  Qe6 {[%clk 0:00:04]} 33. Rxe8 {[%clk 0:00:34]}  Qxe8 {[%clk 0:00:04]} 34. Nxh6+ {[%clk 0:00:34]}  Kh7 {[%clk 0:00:02]} 35. Ng4 {[%clk 0:00:27]}  Qe6 {[%clk 0:00:01]} 36. Nxe5 {[%clk 0:00:24]}  dxe5 {[%clk 0:00:02]} 37. Qxa7 {[%clk 0:00:23]}  Bb4 {[%clk 0:00:02]} 38. Nxb4 {[%clk 0:00:21]}  Qd6 {[%clk 0:00:02]} 39. Nd5 {[%clk 0:00:20]}  Qa3 {[%clk 0:00:03]} 40. Qf2 {[%clk 0:00:18]}  Qxa4 {[%clk 0:00:02]} 41. b6 {[%clk 0:00:19]}  Qa1+ {[%clk 0:00:02]} 42. Kh2 {[%clk 0:00:20]}  Qb1 {[%clk 0:00:02]} 43. Qh4+ {[%clk 0:00:20]}  Kg6 {[%clk 0:00:03]} 44. Qg3+ {[%clk 0:00:20]}  Kh7 {[%clk 0:00:03]} 45. Qxe5 {[%clk 0:00:20]}  f6 {[%clk 0:00:02]} 46. Qf5+ {[%clk 0:00:19]}  Kg8 {[%clk 0:00:02]} 47. Qc8+ {[%clk 0:00:19]}  Kh7 {[%clk 0:00:02]} 48. b7 {[%clk 0:00:19]}  Qb2 {[%clk 0:00:02]} 49. b8=Q {[%clk 0:00:19]}  Qe5+ {[%clk 0:00:02]} 50. Qxe5 {[%clk 0:00:20]}  fxe5 {[%clk 0:00:02]} 51. Qf5+ {[%clk 0:00:20]} 1-0